Workbook

Sheet Adjustment result
F1: 1
F2: 2
F3: 3
I5: 用咗Vlookup整呢3個columns | M5: 主要做嘅adj係呢3個columns
S6: my calc
C7: ISIN-Code-ESTD | D7: Book | E7: Buy | F7: Sell | G7: GrandTotal | I7: PCCO | J7: Amount in func | K7: BMF ID | M7: Account | N7: Debit | O7: Credit | S7: grand total + amount in func
B8: KR_KTBT00000 | C8: KR103501GD32 | D8: KR_KTBT | E8: -1987700000 | F8: 1988300000 | G8: =SUM(Table13[[#This Row],[Buy]],Table13[[#This Row],[Sell]]) -> 600000 | I8: N/A | J8: N/A | K8: N/A
A9: Situation 1 | B9: =C9&RIGHT(D9,4) -> KR103501GD65KTBT | C9: KR103501GD65 | D9: KR_KTBT | E9: -989850000 | F9: 989400000 | G9: =SUM(Table13[[#This Row],[Buy]],Table13[[#This Row],[Sell]]) -> -450000 | I9: A1311000 | J9: 63301743035 | K9: 44442126 | M9: A1311 | S9: =G9+J9 -> 63301293035 | T9: =ABS(N9-S9) -> 63301293035
M10: 1020 | N10: =SUM(G9,J9) -> 63301293035
M11: 8600 | N11: =SUM(G9,J9) -> 63301293035
M12: 8601 | O12: =SUM(G9,J9) -> 63301293035
B13: =C13&RIGHT(D13,4) -> KR103501GD99KTBT | C13: KR103501GD99 | D13: KR_KTBT | F13: 42758184 | G13: =SUM(Table13[[#This Row],[Buy]],Table13[[#This Row],[Sell]]) -> 42758184 | I13: A1311000 | J13: 42549080538 | K13: N/A | M13: A1311 | N13: =SUM(Table13[[#This Row],[GrandTotal]],J13) -> 42591838722
M14: 1020 | N14: =SUM(G13,J13) -> 42591838722
M15: 8600 | N15: =SUM(G13,J13) -> 42591838722
M16: 8601 | O16: =SUM(G13,J13) -> 42591838722
B17: =C17&RIGHT(D17,4) -> KR10350271C8KTBT | C17: KR10350271C8 | D17: KR_KTBT | E17: -2043800000 | G17: =SUM(Table13[[#This Row],[Buy]],Table13[[#This Row],[Sell]]) -> -2043800000 | I17: A1311000 | J17: 2480779330 | K17: 44412025
B18: KR103502G6C4KTBT | C18: KR103502G6C4 | D18: KR_KTBT | F18: 2797500000 | G18: =SUM(Table13[[#This Row],[Buy]],Table13[[#This Row],[Sell]]) -> 2797500000 | I18: A1311000 | J18: 5156973842 | K18: N/A
B19: KR103502G768KTBT | C19: KR103502G768 | D19: KR_KTBT | E19: -1419000000 | G19: =SUM(Table13[[#This Row],[Buy]],Table13[[#This Row],[Sell]]) -> -1419000000 | I19: A1311000 | J19: 1495800150 | K19: 44321396
B20: KR103502G867KTBT | C20: KR103502G867 | D20: KR_KTBT | F20: 351789225 | G20: =SUM(Table13[[#This Row],[Buy]],Table13[[#This Row],[Sell]]) -> 351789225 | I20: A1311000 | J20: 5091133908 | K20: N/A
B21: KR103502GA34KTBT | C21: KR103502GA34 | D21: KR_KTBT | F21: 3953730000 | G21: =SUM(Table13[[#This Row],[Buy]],Table13[[#This Row],[Sell]]) -> 3953730000 | I21: A1311000 | J21: 3329227440 | K21: N/A
A22: Special Case: Situation 2 | B22: KR103502GC32KTBT | C22: KR103502GC32 | D22: KR_KTBT | E22: -3918497400 | G22: =SUM(Table13[[#This Row],[Buy]],Table13[[#This Row],[Sell]]) -> -3918497400 | I22: P1375000 | J22: -13864315868 | K22: N/A | M22: P1375 | O22: =ABS(SUM(Table13[[#This Row],[GrandTotal]],J22)) -> 17782813268 | S22: =G22+J22 -> -17782813268
M23: 2020 | O23: =ABS(SUM(G22,J22)) -> 17782813268
M24: 8700 | O24: =ABS(SUM(G22,J22)) -> 17782813268
M25: 8701 | N25: =ABS(SUM(G22,J22)) -> 17782813268
A26: Situation 2 | B26: =C26&RIGHT(D26,4) -> KR103502GD31KTBT | C26: KR103502GD31 | D26: KR_KTBT | E26: -26209300000 | F26: 30782905000 | G26: =SUM(Table13[[#This Row],[Buy]],Table13[[#This Row],[Sell]]) -> 4573605000 | I26: A1311000 | J26: -4677605000 | K26: 44310962 | M26: A1311 | O26: =ABS(SUM(Table13[[#This Row],[GrandTotal]],J26)) -> 104000000 | S26: =G26+J26 -> -104000000 | T26: =ABS(S26)-O26 -> 0
G27: =SUM(Table13[[#This Row],[Buy]],Table13[[#This Row],[Sell]]) -> 0 | M27: 1020 | O27: =ABS(SUM(G26,J26)) -> 104000000
G28: =SUM(Table13[[#This Row],[Buy]],Table13[[#This Row],[Sell]]) -> 0 | M28: 8700 | O28: =ABS(SUM(G26,J26)) -> 104000000
G29: =SUM(Table13[[#This Row],[Buy]],Table13[[#This Row],[Sell]]) -> 0 | M29: 8701 | N29: =ABS(SUM(G26,J26)) -> 104000000
B30: =C30&RIGHT(D30,4) -> KR103502GD64KTBT | C30: KR103502GD64 | D30: KR_KTBT | E30: -255608600000 | F30: 250793115000 | G30: =SUM(Table13[[#This Row],[Buy]],Table13[[#This Row],[Sell]]) -> -4815485000 | I30: A1311000 | J30: -4243344128 | K30: 44301797
C31: Grand Total | E31: =SUM(E8:E30) -> -292176747400 | F31: =SUM(F8:F30) -> 291699497409 | G31: =SUM(G8:G30) -> -477249991
A38: Situation 3 | G38: 10 | I38: A1311000 | J38: -10 | S38: =G38+J38 -> 0
G39: -10 | I39: A1311000 | J39: 10
A41: special case: situation 2 | G41: 10 | I41: P1375000 | J41: -20 | M41: P1375 | O41: =ABS(G41+J41) -> 10 | S41: =G41+J41 -> -10
M42: 2020 | O42: 10
M43: 8700 | O43: 10
M44: 8701 | O44: 10
A46: special case: situation 3 | G46: 10 | I46: P1375000 | J46: -10
A47: special case: situation 3 | G47: -10 | I47: P1375000 | J47: 10

Sheet Adjustment
I4: 用咗Vlookup整呢3個columns
C6: ISIN-Code-ESTD | D6: Book | E6: Buy | F6: Sell | G6: GrandTotal | I6: PCCO | J6: Amount in func | K6: BMF ID | M6: Account | N6: Debit | O6: Credit
B7: KR_KTBT00000 | C7: KR103501GD32 | D7: KR_KTBT | E7: -1987700000 | F7: 1988300000 | G7: =SUM(Table146[[#This Row],[Buy]],Table146[[#This Row],[Sell]]) -> 600000 | I7: N/A | J7: N/A | K7: N/A
B8: =C8&RIGHT(D8,4) -> KR103501GD65KTBT | C8: KR103501GD65 | D8: KR_KTBT | E8: -989850000 | F8: 989400000 | G8: =SUM(Table146[[#This Row],[Buy]],Table146[[#This Row],[Sell]]) -> -450000 | I8: A1311000 | J8: 63301743035 | K8: 44442126
B9: KR103501GD99KTBT | C9: KR103501GD99 | D9: KR_KTBT | F9: 42758184 | G9: =SUM(Table146[[#This Row],[Buy]],Table146[[#This Row],[Sell]]) -> 42758184 | I9: A1311001 | J9: 42549080538 | K9: N/A
B10: KR10350271C8KTBT | C10: KR10350271C8 | D10: KR_KTBT | E10: -2043800000 | G10: =SUM(Table146[[#This Row],[Buy]],Table146[[#This Row],[Sell]]) -> -2043800000 | I10: A1311002 | J10: 2480779330 | K10: 44412025
B11: KR103502G6C4KTBT | C11: KR103502G6C4 | D11: KR_KTBT | F11: 2797500000 | G11: =SUM(Table146[[#This Row],[Buy]],Table146[[#This Row],[Sell]]) -> 2797500000 | I11: A1311003 | J11: 5156973842 | K11: N/A
B12: KR103502G768KTBT | C12: KR103502G768 | D12: KR_KTBT | E12: -1419000000 | G12: =SUM(Table146[[#This Row],[Buy]],Table146[[#This Row],[Sell]]) -> -1419000000 | I12: A1311004 | J12: 1495800150 | K12: 44321396
B13: KR103502G867KTBT | C13: KR103502G867 | D13: KR_KTBT | F13: 351789225 | G13: =SUM(Table146[[#This Row],[Buy]],Table146[[#This Row],[Sell]]) -> 351789225 | I13: A1311005 | J13: 5091133908 | K13: N/A
B14: KR103502GA34KTBT | C14: KR103502GA34 | D14: KR_KTBT | F14: 3953730000 | G14: =SUM(Table146[[#This Row],[Buy]],Table146[[#This Row],[Sell]]) -> 3953730000 | I14: A1311006 | J14: 3329227440 | K14: N/A
B15: KR103502GC32KTBT | C15: KR103502GC32 | D15: KR_KTBT | E15: -3918497400 | G15: 1 | I15: A1311000 | J15: 1 | K15: N/A
B16: KR103502GC32KTBT | C16: KR103502GC32 | D16: KR_KTBT | E16: -3918497400 | G16: 0 | I16: A1311001 | J16: 1 | K16: N/A
B17: KR103502GC32KTBT | C17: KR103502GC32 | D17: KR_KTBT | E17: -3918497400 | G17: 1 | I17: A1311002 | J17: 1 | K17: N/A
B18: KR103502GC32KTBT | C18: KR103502GC32 | D18: KR_KTBT | E18: -3918497400 | G18: 0 | I18: A1311000 | J18: 1 | K18: N/A
B19: KR103502GC32KTBT | C19: KR103502GC32 | D19: KR_KTBT | E19: -3918497400 | G19: -1 | I19: A1311001 | J19: 0 | K19: N/A
B20: KR103502GC32KTBT | C20: KR103502GC32 | D20: KR_KTBT | E20: -3918497400 | G20: -1 | I20: A1311002 | J20: -1 | K20: N/A
B21: KR103502GC32KTBT | C21: KR103502GC32 | D21: KR_KTBT | E21: -3918497400 | G21: 0 | I21: A1311000 | J21: 0 | K21: N/A
B22: KR103502GC32KTBT | C22: KR103502GC32 | D22: KR_KTBT | E22: -3918497400 | G22: 1 | I22: P1375000 | J22: 1 | K22: N/A
B23: KR103502GC32KTBT | C23: KR103502GC32 | D23: KR_KTBT | E23: -3918497400 | G23: 0 | I23: P1375000 | J23: 1 | K23: N/A
B24: KR103502GC32KTBT | C24: KR103502GC32 | D24: KR_KTBT | E24: -3918497400 | G24: 1 | I24: P1375000 | J24: 1 | K24: N/A
B25: KR103502GC32KTBT | C25: KR103502GC32 | D25: KR_KTBT | E25: -3918497400 | G25: 0 | I25: P1375000 | J25: 1 | K25: N/A
B26: KR103502GC32KTBT | C26: KR103502GC32 | D26: KR_KTBT | E26: -3918497400 | G26: -1 | I26: P1375000 | J26: 0 | K26: N/A
B27: KR103502GC32KTBT | C27: KR103502GC32 | D27: KR_KTBT | E27: -3918497400 | G27: -1 | I27: P1375000 | J27: -1 | K27: N/A
B28: KR103502GC32KTBT | C28: KR103502GC32 | D28: KR_KTBT | E28: -3918497400 | G28: 0 | I28: P1375000 | J28: 0 | K28: N/A
B29: KR103502GC32KTBT | C29: KR103502GC32 | D29: KR_KTBT | E29: -3918497400 | G29: =SUM(#REF!,#REF!) ->  | I29: P1375000 | J29: -13864315868 | K29: N/A
B30: KR103502GC32KTBT | C30: KR103502GC32 | D30: KR_KTBT | E30: -3918497400 | G30: =SUM(#REF!,#REF!) ->  | I30: P1375000 | J30: -13864315868 | K30: N/A
B31: KR103502GC32KTBT | C31: KR103502GC32 | D31: KR_KTBT | E31: -3918497400 | G31: =SUM(#REF!,#REF!) ->  | I31: P1375000 | J31: -13864315868 | K31: N/A
B32: KR103502GC32KTBT | C32: KR103502GC32 | D32: KR_KTBT | E32: -3918497400 | G32: =SUM(#REF!,#REF!) ->  | I32: P1375000 | J32: -13864315868 | K32: N/A
B33: KR103502GC32KTBT | C33: KR103502GC32 | D33: KR_KTBT | E33: -3918497400 | G33: =SUM(#REF!,#REF!) ->  | I33: P1375000 | J33: -13864315868 | K33: N/A
B34: KR103502GC32KTBT | C34: KR103502GC32 | D34: KR_KTBT | E34: -3918497400 | G34: =SUM(#REF!,#REF!) ->  | I34: P1375000 | J34: -13864315868 | K34: N/A
B35: KR103502GD31KTBT | C35: KR103502GD31 | D35: KR_KTBT | E35: -26209300000 | F35: 30782905000 | G35: =SUM(#REF!,#REF!) ->  | I35: A1311008 | J35: -4677605000 | K35: 44310962
B36: KR103502GD64KTBT | C36: KR103502GD64 | D36: KR_KTBT | E36: -255608600000 | F36: 250793115000 | G36: =SUM(#REF!,#REF!) ->  | I36: A1311009 | J36: -4243344128 | K36: 44301797
C37: Grand Total | E37: =SUM(E7:E36) -> -366628198000 | F37: =SUM(F7:F36) -> 291699497409 | G37: =SUM(G7:G36) -> 

Sheet Adjustment_TEST
I4: 用咗Vlookup整呢3個columns
C6: ISIN-Code-ESTD | D6: Book | E6: Buy | F6: Sell | G6: GrandTotal | I6: PCCO | J6: Amount in func | K6: BMF ID | M6: Account | N6: Debit | O6: Credit
B7: KR_KTBT00000 | C7: KR103501GD32 | D7: KR_KTBT | E7: -1987700000 | F7: 1988300000 | G7: =SUM(Table14[[#This Row],[Buy]],Table14[[#This Row],[Sell]]) -> 600000 | I7: N/A | J7: N/A | K7: N/A
B8: =C8&RIGHT(D8,4) -> KR103501GD65KTBT | C8: KR103501GD65 | D8: KR_KTBT | E8: -989850000 | F8: 989400000 | G8: =SUM(Table14[[#This Row],[Buy]],Table14[[#This Row],[Sell]]) -> -450000 | I8: A1311000 | J8: 63301743035 | K8: 44442126
B9: KR103501GD99KTBT | C9: KR103501GD99 | D9: KR_KTBT | F9: 42758184 | G9: =SUM(Table14[[#This Row],[Buy]],Table14[[#This Row],[Sell]]) -> 42758184 | I9: A1311001 | J9: 42549080538 | K9: N/A
B10: KR10350271C8KTBT | C10: KR10350271C8 | D10: KR_KTBT | E10: -2043800000 | G10: =SUM(Table14[[#This Row],[Buy]],Table14[[#This Row],[Sell]]) -> -2043800000 | I10: A1311002 | J10: 2480779330 | K10: 44412025
B11: KR103502G6C4KTBT | C11: KR103502G6C4 | D11: KR_KTBT | F11: 2797500000 | G11: =SUM(Table14[[#This Row],[Buy]],Table14[[#This Row],[Sell]]) -> 2797500000 | I11: A1311003 | J11: 5156973842 | K11: N/A
B12: KR103502G768KTBT | C12: KR103502G768 | D12: KR_KTBT | E12: -1419000000 | G12: =SUM(Table14[[#This Row],[Buy]],Table14[[#This Row],[Sell]]) -> -1419000000 | I12: A1311004 | J12: 1495800150 | K12: 44321396
B13: KR103502G867KTBT | C13: KR103502G867 | D13: KR_KTBT | F13: 351789225 | G13: =SUM(Table14[[#This Row],[Buy]],Table14[[#This Row],[Sell]]) -> 351789225 | I13: A1311005 | J13: 5091133908 | K13: N/A
B14: KR103502GA34KTBT | C14: KR103502GA34 | D14: KR_KTBT | F14: 3953730000 | G14: =SUM(Table14[[#This Row],[Buy]],Table14[[#This Row],[Sell]]) -> 3953730000 | I14: A1311006 | J14: 3329227440 | K14: N/A
B15: KR103502GC32KTBT | C15: KR103502GC32 | D15: KR_KTBT | E15: -3918497400 | G15: 1 | I15: A1311000 | J15: 1 | K15: N/A
B16: KR103502GC32KTBT | C16: KR103502GC32 | D16: KR_KTBT | E16: -3918497400 | G16: 0 | I16: A1311001 | J16: 1 | K16: N/A
B17: KR103502GC32KTBT | C17: KR103502GC32 | D17: KR_KTBT | E17: -3918497400 | G17: 1 | I17: A1311002 | J17: 1 | K17: N/A
B18: KR103502GC32KTBT | C18: KR103502GC32 | D18: KR_KTBT | E18: -3918497400 | G18: 0 | I18: A1311000 | J18: 1 | K18: N/A
B19: KR103502GC32KTBT | C19: KR103502GC32 | D19: KR_KTBT | E19: -3918497400 | G19: -1 | I19: A1311001 | J19: 0 | K19: N/A
B20: KR103502GC32KTBT | C20: KR103502GC32 | D20: KR_KTBT | E20: -3918497400 | G20: -1 | I20: A1311002 | J20: -1 | K20: N/A
B21: KR103502GC32KTBT | C21: KR103502GC32 | D21: KR_KTBT | E21: -3918497400 | G21: 0 | I21: A1311000 | J21: 0 | K21: N/A
B22: KR103502GC32KTBT | C22: KR103502GC32 | D22: KR_KTBT | E22: -3918497400 | G22: 1 | I22: P1375000 | J22: 1 | K22: N/A
B23: KR103502GC32KTBT | C23: KR103502GC32 | D23: KR_KTBT | E23: -3918497400 | G23: 0 | I23: P1375000 | J23: 1 | K23: N/A
B24: KR103502GC32KTBT | C24: KR103502GC32 | D24: KR_KTBT | E24: -3918497400 | G24: 1 | I24: P1375000 | J24: 1 | K24: N/A
B25: KR103502GC32KTBT | C25: KR103502GC32 | D25: KR_KTBT | E25: -3918497400 | G25: 0 | I25: P1375000 | J25: 1 | K25: N/A
B26: KR103502GC32KTBT | C26: KR103502GC32 | D26: KR_KTBT | E26: -3918497400 | G26: -1 | I26: P1375000 | J26: 0 | K26: N/A
B27: KR103502GC32KTBT | C27: KR103502GC32 | D27: KR_KTBT | E27: -3918497400 | G27: -1 | I27: P1375000 | J27: -1 | K27: N/A
B28: KR103502GC32KTBT | C28: KR103502GC32 | D28: KR_KTBT | E28: -3918497400 | G28: 0 | I28: P1375000 | J28: 0 | K28: N/A
B29: KR103502GC32KTBT | C29: KR103502GC32 | D29: KR_KTBT | E29: -3918497400 | G29: =SUM(#REF!,#REF!) ->  | I29: P1375000 | J29: -13864315868 | K29: N/A
B30: KR103502GC32KTBT | C30: KR103502GC32 | D30: KR_KTBT | E30: -3918497400 | G30: =SUM(#REF!,#REF!) ->  | I30: P1375000 | J30: -13864315868 | K30: N/A
B31: KR103502GC32KTBT | C31: KR103502GC32 | D31: KR_KTBT | E31: -3918497400 | G31: =SUM(#REF!,#REF!) ->  | I31: P1375000 | J31: -13864315868 | K31: N/A
B32: KR103502GC32KTBT | C32: KR103502GC32 | D32: KR_KTBT | E32: -3918497400 | G32: =SUM(#REF!,#REF!) ->  | I32: P1375000 | J32: -13864315868 | K32: N/A
B33: KR103502GC32KTBT | C33: KR103502GC32 | D33: KR_KTBT | E33: -3918497400 | G33: =SUM(#REF!,#REF!) ->  | I33: P1375000 | J33: -13864315868 | K33: N/A
B34: KR103502GC32KTBT | C34: KR103502GC32 | D34: KR_KTBT | E34: -3918497400 | G34: =SUM(#REF!,#REF!) ->  | I34: P1375000 | J34: -13864315868 | K34: N/A
B35: KR103502GD31KTBT | C35: KR103502GD31 | D35: KR_KTBT | E35: -26209300000 | F35: 30782905000 | G35: =SUM(#REF!,#REF!) ->  | I35: A1311008 | J35: -4677605000 | K35: 44310962
B36: KR103502GD64KTBT | C36: KR103502GD64 | D36: KR_KTBT | E36: -255608600000 | F36: 250793115000 | G36: =SUM(#REF!,#REF!) ->  | I36: A1311009 | J36: -4243344128 | K36: 44301797
C37: Grand Total | E37: =SUM(E7:E36) -> -366628198000 | F37: =SUM(F7:F36) -> 291699497409 | G37: =SUM(G7:G36) -> 
